bitfinex-derivatives/quotes_SOLF0:USTF0_20251018
["timestamp","ask_amount","ask_price","bid_price","bid_amount"]
[1760771564508,9.35261527,188.02,187.93,4.7877]
[1760771564706,2.83,188.01,187.93,4.7877]
[1760771565807,7.01939889,188.01,187.9,4.7883]
[1760771566110,2.83,188.0,187.9,4.7883]
[1760771566610,2.83,187.99,187.9,4.7883]
[1760771567205,2.83,187.99,187.91,4.788]
[1760771568017,2.83,188.02,187.85,4.56721527]
[1760771568311,7.0203088,188.02,187.85,4.56721527]
[1760771568512,2.83,188.02,187.85,14.14671527]
[1760771569209,4.1903088,188.03,187.89,4.56721527]
[1760771569405,7.0203088,188.07,187.89,4.56721527]
[1760771569605,4.1903088,188.06,187.89,4.56721527]
[1760771569913,4.7845,188.06,187.98,4.7864]
[1760771570405,2.83,188.05,187.96,4.7869]
[1760771570812,2.83,188.04,187.96,4.7869]
[1760771571308,7.02515985,188.04,187.96,4.7869]
[1760771571513,11.81025985,188.04,187.96,4.7869]
[1760771571711,7.02515985,188.03,187.96,4.7869]
[1760771571907,2.83,188.03,187.96,4.7869]
[1760771573013,2.83,188.01,187.85,4.56721527]
[1760771573308,4.19729665,188.0,187.85,4.56721527]
[1760771573510,12.18311527,188.01,187.92,4.7878]
[1760771574812,2.83,188.01,187.95,4.7871]
[1760771575413,2.83,188.01,187.92,4.7877]
[1760771575912,2.83,188.01,187.86,62.0]
[1760771576108,7.6159,188.01,187.86,62.0]
[1760771576311,4.2033815,188.0,187.86,62.0]
[1760771576611,7.6159,188.01,187.86,62.0]
[1760771576812,2.83,188.01,187.94,4.7874]
[1760771578316,4.21343119,188.0,187.94,4.7874]
[1760771578508,2.83,188.01,187.94,4.7874]
[1760771578713,4.21343103,188.0,187.94,4.7874]
[1760771578917,2.83,188.01,187.94,4.7874]
[1760771579116,4.21343103,188.0,187.94,4.7874]
[1760771579320,2.83,187.98,187.94,4.7874]
[1760771579506,2.83,188.01,187.94,4.7874]
[1760771579707,4.2181976,188.0,187.94,4.7874]
[1760771579912,2.83,187.98,187.94,4.7874]
[1760771580109,2.83,188.01,187.92,4.7879]
[1760771580414,2.83,187.99,187.84,14.14681527]
[1760771580610,4.21874676,187.98,187.84,14.14681527]
[1760771580816,4.21874676,187.97,187.91,4.788]
[1760771581013,7.04874676,187.96,187.91,4.788]
[1760771581314,2.83,187.94,187.91,4.788]
[1760771582219,7.39721527,187.98,187.91,4.788]
[1760771582420,4.22332748,187.97,187.91,4.788]
[1760771582618,2.83,187.95,187.91,4.788]
[1760771582814,4.22332748,187.94,187.91,4.788]
[1760771583014,2.83,187.95,187.91,4.788]
[1760771583214,4.22673024,187.94,187.87,4.7891]
[1760771583514,4.22673024,187.93,187.79,14.14961527]
[1760771583713,2.83,187.96,187.79,14.14961527]
[1760771583912,4.22826608,187.95,187.79,14.14961527]
[1760771584116,4.22826608,187.94,187.79,14.14961527]
[1760771584319,4.22826608,187.93,187.79,14.14961527]
[1760771584517,4.22826608,187.92,187.79,14.14961527]
[1760771584716,7.76616701,187.96,187.79,14.14961527]
[1760771584914,4.22962628,187.95,187.79,14.14961527]
[1760771585120,4.22962628,187.94,187.79,14.14961527]
[1760771585319,4.22962628,187.93,187.79,14.14961527]
[1760771585517,4.22962628,187.92,187.79,14.14961527]
[1760771585714,2.71,187.9,187.82,4.7903]
[1760771585913,4.22962628,187.89,187.75,4.56721527]
[1760771586118,2.71,187.9,187.75,4.56721527]
[1760771586318,2.71,187.9,187.76,62.0]
[1760771586319,4.23276788,187.89,187.76,62.0]
[1760771586516,6.94276788,187.88,187.75,4.56721527]
[1760771586813,4.23276788,187.87,187.75,4.56721527]
[1760771587012,2.71,187.88,187.82,4.7903]
[1760771587013,4.23276788,187.86,187.82,4.7903]
[1760771587219,2.71,187.88,187.82,4.7903]
[1760771587410,4.23610258,187.87,187.75,4.56721527]
[1760771587615,2.71,187.92,187.75,4.56721527]
[1760771587616,2.71,187.92,187.86,4.7893]
[1760771587818,6.94570484,187.91,187.86,4.7893]
[1760771588114,6.94570484,187.91,187.76,9.5841]
[1760771588115,6.94570484,187.9,187.85,4.7896]
[1760771588315,4.23570484,187.89,187.77,9.5836]
[1760771588521,4.93616701,187.94,187.77,9.5836]
[1760771588822,4.22150369,187.93,187.77,9.5836]
[1760771589018,4.22150369,187.92,187.77,9.5836]
[1760771589216,4.22150369,187.91,187.77,9.5836]
[1760771589414,7.64616701,187.95,187.78,9.5831]
[1760771589622,4.22085654,187.94,187.8,4.56721527]
[1760771589920,4.22085654,187.93,187.8,4.56721527]
[1760771590122,4.22085654,187.92,187.8,4.56721527]
[1760771590317,2.71,187.95,187.8,4.56721527]
[1760771590519,4.22023736,187.94,187.8,4.56721527]
[1760771590712,6.93023736,187.93,187.89,4.7885]
[1760771590922,2.71,187.93,187.89,4.7885]
[1760771591320,2.84,187.96,187.89,4.7885]
[1760771591521,4.22001589,187.95,187.89,4.7885]
[1760771591828,7.40721527,187.97,187.81,9.5813]
[1760771592026,4.21973424,187.96,187.8,4.56721527]
[1760771592223,4.21973424,187.95,187.8,4.56721527]
[1760771592427,2.84,187.97,187.84,4.56721527]
[1760771592625,4.21971926,187.96,187.84,4.56721527]
[1760771592827,2.84,187.98,187.92,4.7878]
[1760771593021,2.84,187.96,187.92,4.7878]
[1760771593530,2.84,187.99,187.92,4.7878]
[1760771593724,4.21974019,187.98,187.92,4.7878]
[1760771593925,2.84,187.96,187.89,4.7885]
[1760771594232,2.84,187.94,187.8,4.56721527]
[1760771594432,8.78730707,187.93,187.71,4.56721527]
[1760771594627,4.7883,187.91,187.8,4.7908]
[1760771594824,7.0600918,187.9,187.72,9.5861]
[1760771595025,7.0600918,187.9,187.71,50.42721527]
[1760771595026,2.84,187.9,187.71,50.42721527]
[1760771595933,2.84,187.9,187.73,9.5856]
[1760771596935,2.84,187.9,187.82,4.7903]
[1760771597835,2.84,187.9,187.83,4.7901]
[1760771598133,2.84,187.9,187.75,4.56721527]
[1760771598629,2.84,187.94,187.87,4.7892]
[1760771599029,2.84,187.94,187.75,4.56721527]
[1760771599228,2.84,187.94,187.88,4.7888]
[1760771601434,2.84,187.94,187.86,4.7894]
[1760771601631,2.84,187.94,187.78,9.5826]
[1760771601833,2.84,187.94,187.77,74.5395]
[1760771602228,2.84,187.94,187.8,9.5818]
[1760771602629,2.84,187.96,187.91,4.7881]
[1760771603034,4.56721527,187.97,187.91,4.7881]
[1760771603336,4.21547219,187.96,187.91,4.7881]
[1760771603537,2.84,187.96,187.89,4.7886]
[1760771605333,2.84,187.96,187.9,4.7883]
[1760771605533,2.84,187.96,187.82,62.0]
[1760771606933,2.84,187.96,187.89,4.7885]
[1760771607731,4.22071153,187.95,187.89,4.7885]
[1760771607932,4.56721527,187.97,187.89,4.7885]
[1760771608234,2.84,187.95,187.89,4.7885]
[1760771608636,2.84,187.95,187.9,4.7883]
[1760771608838,2.84,187.95,187.82,62.0]
[1760771609032,4.56721527,187.97,187.82,66.56721527]
[1760771609437,4.56721527,187.97,187.82,107.84]
[1760771609630,2.84,187.96,187.82,107.84]
[1760771609837,2.84,187.96,187.82,62.0]
[1760771610029,2.84,187.96,187.82,107.84]
[1760771610536,2.84,187.96,187.9,4.7884]
[1760771611437,1.79362946,187.94,187.9,4.7884]
[1760771613542,1.79362946,187.92,187.9,4.7884]
[1760771614145,4.63362946,187.92,187.9,4.7884]
[1760771614737,4.63362946,187.92,187.82,62.0]
[1760771615130,4.63362946,187.92,187.83,1.79362946]
[1760771615330,2.84,187.91,187.87,4.789]
[1760771615837,4.7876,187.94,187.85,4.7896]
[1760771616038,1.79362946,187.88,187.85,4.7896]
[1760771616637,4.63362946,187.88,187.85,4.7896]
[1760771617441,2.84,187.88,187.85,4.7896]
[1760771618041,2.80462267,187.89,187.85,4.7896]
[1760771618243,2.80462267,187.89,187.83,4.7902]
[1760771618444,2.80462267,187.86,187.83,4.7902]
[1760771618641,2.80462267,187.88,187.83,4.7902]
[1760771618843,2.84,187.87,187.83,4.7902]
[1760771621150,2.80462267,187.88,187.83,4.7902]
[1760771621449,2.62,187.87,187.83,4.7902]
[1760771622542,4.7882,187.92,187.79,2.80462267]
[1760771622543,2.80462267,187.92,187.79,2.80462267]
[1760771622849,2.62,187.93,187.83,2.80462267]
[1760771623047,2.62,187.93,187.89,4.7886]
[1760771623349,2.62,187.93,187.81,2.80462267]
[1760771623548,4.2402802,187.92,187.81,2.80462267]
[1760771623748,2.62,187.93,187.81,2.80462267]
[1760771624051,7.0449039,187.92,187.84,4.7899]
[1760771624251,6.86042576,187.91,187.84,4.7899]
[1760771624441,2.62,187.91,187.84,4.7899]
[1760771625449,5.42462267,187.91,187.84,4.7899]
[1760771626246,4.24199324,187.9,187.84,4.7899]
[1760771626440,5.42462267,187.91,187.84,4.7899]
[1760771626641,4.24199324,187.9,187.84,4.7899]
[1760771626841,5.42462267,187.91,187.84,4.7899]
[1760771627046,4.24199324,187.9,187.84,4.7899]
[1760771627254,5.42462267,187.91,187.84,4.7899]
[1760771627553,4.24215344,187.9,187.84,4.7899]
[1760771627742,4.24226551,187.89,187.84,4.7899]
[1760771627946,2.80462267,187.91,187.84,4.7899]
[1760771627947,2.62,187.9,187.84,4.7899]
[1760771628140,2.62,187.88,187.84,4.7899]
[1760771628345,2.62,187.88,187.76,107.8]
[1760771628346,2.62,187.9,187.76,110.60462267]
[1760771628545,4.24211388,187.89,187.76,110.60462267]
[1760771628746,2.62,187.9,187.76,110.60462267]
[1760771629045,2.62,187.91,187.79,2.80462267]
[1760771629650,7.55616701,187.95,187.82,2.80462267]
[1760771629847,7.55616701,187.95,187.77,74.5395]
[1760771629848,4.24165845,187.94,187.85,2.80462267]
[1760771630150,2.62,187.95,187.85,2.80462267]
[1760771630349,4.24125802,187.94,187.85,2.80462267]
[1760771630551,2.62,187.95,187.85,2.80462267]
[1760771630748,4.24107502,187.94,187.85,2.80462267]
[1760771631048,2.62,187.95,187.88,4.789]
[1760771631252,2.62,187.95,187.85,2.80462267]
[1760771631448,2.62,187.99,187.88,2.80462267]
[1760771631755,4.2407305,187.98,187.85,2.80462267]
[1760771631953,4.2407305,187.97,187.88,2.80462267]
[1760771632153,2.62,187.99,187.88,2.80462267]
[1760771632355,4.24072739,187.98,187.87,2.80462267]
[1760771632654,4.24072739,187.97,187.87,2.80462267]
[1760771632854,2.62,187.99,187.87,64.80462267]
[1760771633054,4.24056305,187.98,187.87,64.80462267]
[1760771633256,4.24056305,187.97,187.87,64.80462267]
[1760771633458,2.62,187.99,187.87,64.80462267]
[1760771633758,4.24013011,187.98,187.87,62.0]
[1760771634052,2.62,187.96,187.84,9.5798]
[1760771634256,2.62,187.96,187.84,55.3798]
[1760771634462,2.62,187.96,187.85,2.80462267]
[1760771636058,2.80462267,187.97,187.91,4.788]
[1760771636248,5.42462267,187.97,187.91,4.788]
[1760771636448,2.62,187.96,187.91,4.788]
[1760771636758,4.19519282,188.0,187.92,4.7878]
[1760771636959,2.80462267,187.98,187.92,4.7878]
[1760771637151,4.23811862,187.97,187.92,4.7878]
[1760771637358,2.62,187.95,187.92,4.7878]
[1760771639259,2.80462267,187.98,187.92,4.7878]
[1760771639459,2.62,187.97,187.92,4.7878]
[1760771639662,2.80462267,187.98,187.92,4.7878]
[1760771639851,2.62,187.97,187.92,4.7878]
[1760771640253,2.62,187.97,187.78,74.5319]
[1760771640254,2.62,187.94,187.81,2.80462267]
[1760771640760,2.62,187.94,187.84,2.80462267]
[1760771641166,2.62,187.94,187.81,12.38592267]
[1760771642066,2.62,187.92,187.81,12.38592267]
[1760771643063,2.62,187.92,187.81,2.80462267]
[1760771643267,2.62,187.92,187.81,64.80462267]
[1760771643563,2.62,187.92,187.81,2.80462267]
[1760771643962,2.62,187.92,187.76,9.5839]
[1760771643963,6.86789219,187.91,187.85,4.7896]
[1760771644266,2.8,187.91,187.85,4.7896]
[1760771646567,4.93616701,187.96,187.83,2.80462267]
[1760771646568,2.8,187.94,187.83,2.80462267]
[1760771646767,4.2474016,187.93,187.83,2.80462267]
[1760771646970,4.2474016,187.92,187.83,2.80462267]
[1760771647168,2.8,187.94,187.83,2.80462267]
[1760771647468,4.24754815,187.93,187.86,2.80462267]
[1760771647669,2.8,187.94,187.86,2.80462267]
[1760771648659,2.8,187.94,187.78,9.5831]
[1760771648660,2.8,187.94,187.84,2.80462267]
[1760771649965,2.8,187.95,187.78,9.5831]
[1760771650166,2.8,187.93,187.81,2.80462267]
[1760771650367,4.24694591,187.92,187.81,2.80462267]
[1760771650566,2.8,187.93,187.81,2.80462267]
[1760771650966,2.77,187.91,187.77,62.0]
[1760771651167,2.77,187.91,187.8,2.80462267]
[1760771651970,2.77,187.91,187.83,4.7903]
[1760771653268,2.77,187.91,187.77,62.0]
[1760771653472,2.77,187.87,187.75,92.80604337]
[1760771653877,2.77,187.87,187.76,2.80462267]
[1760771655076,2.77,187.87,187.8,4.7908]
[1760771655869,2.77,187.87,187.81,4.7905]
[1760771657779,2.77,187.89,187.82,4.7904]
[1760771657975,4.24548473,187.88,187.82,4.7904]
[1760771658168,2.77,187.89,187.82,4.7904]
[1760771658973,2.77,187.89,187.79,2.80462267]
[1760771659171,5.57462267,187.93,187.82,2.80462267]
[1760771659367,4.24469532,187.92,187.82,2.80462267]
[1760771659674,2.77,187.93,187.82,2.80462267]
[1760771660174,2.77,187.93,187.85,4.7897]
[1760771660375,5.57462267,187.93,187.85,4.7897]
[1760771660572,7.01449912,187.92,187.85,4.7897]
[1760771660873,2.77,187.9,187.84,4.7898]
[1760771661475,2.77,187.92,187.85,4.7896]
[1760771661673,8.9822337,187.94,187.76,55.3238]
[1760771661674,2.77,187.89,187.76,55.3238]
[1760771661876,2.77,187.89,187.76,58.12842267]
[1760771662079,2.77,187.89,187.83,4.7901]
[1760771662981,2.80462267,187.9,187.84,4.7898]
[1760771663277,2.77,187.91,187.84,4.7898]
[1760771664080,2.77,187.91,187.85,4.7896]
[1760771666381,4.7876,187.94,187.75,92.80604337]
[1760771666382,2.80462267,187.87,187.75,92.80604337]
[1760771666578,2.77,187.82,187.75,92.80604337]
[1760771667874,2.77,187.82,187.77,4.7916]
[1760771668083,5.57462267,187.83,187.77,4.7916]
[1760771668277,2.77,187.83,187.77,4.7916]
[1760771670279,2.77,187.83,187.75,97.59834337]
[1760771672191,4.7902,187.84,187.75,92.80604337]
[1760771672387,2.77,187.82,187.75,92.80604337]
[1760771676189,2.77,187.85,187.77,4.7916]
[1760771679387,2.77,187.85,187.79,1.79532087]
[1760771680686,2.77,187.85,187.78,1.79532087]
[1760771682389,2.74,187.91,187.84,1.79532087]
[1760771682690,2.74,187.91,187.87,1.79532087]
[1760771683082,2.74,187.96,187.89,1.79532087]
[1760771683280,8.86422543,187.95,187.89,1.79532087]
[1760771683485,4.3236497,187.94,187.89,1.79532087]
[1760771683685,2.74,187.94,187.91,1.79532087]
[1760771684390,4.32566296,187.93,187.89,1.79532087]
[1760771684690,2.74,187.94,187.89,1.79532087]
[1760771684890,4.32566348,187.93,187.89,1.79532087]
[1760771685087,4.54120898,187.96,187.89,1.79532087]
[1760771685288,4.32566296,187.95,187.89,1.79532087]
[1760771685489,4.32566296,187.94,187.89,1.79532087]
[1760771685693,4.32566296,187.93,187.89,1.79532087]
[1760771685989,2.74,187.94,187.89,1.79532087]
[1760771686189,4.32555752,187.93,187.89,1.79532087]
[1760771686492,2.74,187.94,187.89,1.79532087]
[1760771686693,4.32588706,187.93,187.89,1.79532087]
[1760771686892,2.74,187.94,187.89,1.79532087]
[1760771687498,4.32575029,187.93,187.89,1.79532087]
[1760771687691,2.74,187.94,187.89,1.79532087]
[1760771687888,4.32575029,187.93,187.89,1.79532087]
[1760771688091,9.01743818,187.92,187.7,9.5868]
[1760771688290,9.01743818,187.91,187.85,1.79532087]
[1760771688491,2.74,187.89,187.87,1.79532087]
[1760771688691,2.74,187.89,187.74,9.5847]
[1760771688893,2.74,187.93,187.86,1.79532087]
[1760771689192,1.79532087,187.88,187.79,1.79532087]
[1760771689396,4.32676607,187.87,187.79,1.79532087]
[1760771689600,2.74,187.88,187.79,1.79532087]
[1760771689999,2.74,187.88,187.79,6.58662087]
[1760771690896,1.79532087,187.87,187.79,4.7913]
[1760771691994,2.74,187.88,187.76,4.7918]
[1760771691995,1.79532087,187.84,187.76,4.7918]
[1760771692196,1.79532087,187.84,187.75,92.80604337]
[1760771693097,1.79532087,187.84,187.77,4.7916]
[1760771693294,1.79532087,187.84,187.76,1.79532087]
[1760771693999,1.79532087,187.84,187.78,4.7913]
[1760771695292,1.79532087,187.88,187.78,1.79532087]
[1760771695903,1.79532087,187.88,187.82,4.7903]
[1760771696099,2.74,187.9,187.82,1.79532087]
[1760771696400,2.74,187.94,187.88,1.79532087]
[1760771696602,7.06939616,187.93,187.88,1.79532087]
[1760771696792,4.32960965,187.92,187.88,1.79532087]
[1760771696997,2.74,187.92,187.86,1.79532087]
[1760771697196,2.74,187.92,187.86,6.58462087]
[1760771700907,2.74,187.92,187.86,4.7893]
[1760771701301,2.74,187.92,187.86,6.58462087]
[1760771702505,4.69163145,187.94,187.86,6.58462087]
[1760771702710,4.69163145,187.94,187.81,45.64]
[1760771702711,2.74,187.98,187.92,1.79532087]
[1760771702911,2.74,187.96,187.92,1.79532087]
[1760771704209,2.74,187.94,187.87,1.79532087]
[1760771704907,2.74,187.94,187.88,4.7889]
[1760771706504,1.79532087,187.93,187.88,4.7889]
[1760771706704,2.68,187.92,187.88,4.7889]
[1760771706904,1.79532087,187.91,187.84,4.79]
[1760771707315,2.68,187.92,187.84,4.79]
[1760771707505,2.68,187.92,187.83,1.79532087]
[1760771707506,2.68,187.92,187.85,1.79532087]
[1760771707911,2.68,187.92,187.87,1.79532087]
[1760771708113,4.47532087,187.96,187.87,1.79532087]
[1760771708415,4.29267049,187.95,187.87,1.79532087]
[1760771708612,2.68,187.94,187.81,62.0]
[1760771708812,4.47532087,187.94,187.87,1.79532087]
[1760771709007,4.47532087,187.94,187.85,1.79532087]
[1760771709212,4.47532087,187.94,187.87,4.7891]
[1760771709714,4.47532087,187.94,187.87,6.58442087]
[1760771710713,4.47532087,187.94,187.87,4.7891]
[1760771710911,2.81,187.91,187.85,4.7897]
[1760771711209,2.81,187.89,187.8,1.79532087]
[1760771711414,2.81,187.89,187.75,92.80604337]
[1760771711415,1.79532087,187.87,187.78,1.79532087]
[1760771711816,1.79532087,187.85,187.77,1.79532087]
[1760771712016,1.79532087,187.85,187.75,92.80604337]
[1760771712219,1.79532087,187.85,187.75,94.60136424]
[1760771712415,1.79532087,187.83,187.75,94.60136424]
[1760771712610,1.79532087,187.85,187.77,4.7916]
[1760771712811,1.79532087,187.87,187.79,1.79532087]
[1760771713006,4.60532087,187.9,187.81,1.79532087]
[1760771713211,4.60532087,187.9,187.75,92.80604337]
[1760771713408,2.81,187.88,187.75,97.37667892]
[1760771713616,2.81,187.86,187.75,97.37667892]
[1760771714020,2.81,187.86,187.78,4.7913]
[1760771714211,2.81,187.86,187.75,92.80604337]
[1760771715223,2.81,187.86,187.76,4.792]
[1760771715618,2.81,187.86,187.75,92.80604337]
[1760771716319,4.2953823,187.85,187.75,92.80604337]
[1760771716519,2.81,187.84,187.75,92.80604337]
[1760771717519,4.7901,187.84,187.75,92.80604337]
[1760771717714,2.81,187.82,187.75,92.80604337]
[1760771717920,2.81,187.85,187.7,4.57063555]
[1760771718117,2.81,187.82,187.72,4.7928]
[1760771718317,2.81,187.81,187.69,50.17063555]
[1760771719019,2.81,187.84,187.69,50.17063555]
[1760771719226,2.81,187.82,187.7,4.7936]
[1760771719425,2.81,187.8,187.65,45.6]
[1760771719723,2.81,187.78,187.65,50.17063555]
[1760771720224,2.81,187.78,187.68,4.7941]
[1760771720924,4.64166651,187.81,187.68,4.57063555]
[1760771721227,2.81,187.82,187.71,4.57063555]
[1760771721819,7.44821389,187.86,187.74,4.57063555]
[1760771722021,4.29303856,187.85,187.74,4.57063555]
[1760771722227,7.44821389,187.86,187.77,4.57063555]
[1760771722228,2.81,187.86,187.77,4.57063555]
[1760771722428,2.81,187.86,187.77,9.36223555]
[1760771722628,2.81,187.86,187.77,4.7916]
[1760771723223,2.81,187.86,187.79,4.7912]
[1760771723426,7.44734684,187.9,187.81,4.57063555]
[1760771723627,4.29223265,187.89,187.81,4.57063555]
[1760771723830,2.81,187.9,187.81,4.57063555]
[1760771724029,4.29208595,187.89,187.83,4.7902]
[1760771724227,2.81,187.9,187.81,4.57063555]
[1760771724425,4.29255634,187.89,187.81,4.57063555]
[1760771724728,2.81,187.88,187.81,4.57063555]
[1760771728122,2.81,187.88,187.8,4.7908]
[1760771729627,2.81,187.89,187.8,4.7908]
[1760771729821,2.81,187.87,187.77,9.36223555]
[1760771730024,2.81,187.87,187.77,4.57063555]
[1760771730224,4.29398344,187.9,187.81,4.57063555]
[1760771730426,2.81,187.92,187.81,4.57063555]
[1760771730730,4.29393206,187.91,187.84,4.79]
[1760771731022,2.81,187.92,187.84,4.79]
[1760771731228,4.29385623,187.91,187.84,4.79]
[1760771731418,2.81,187.92,187.84,4.79]
[1760771731618,4.29422167,187.91,187.84,4.79]
[1760771731820,2.81,187.92,187.84,4.79]
[1760771732225,2.81,187.96,187.85,4.57063555]
[1760771732432,4.29431216,187.95,187.85,4.57063555]
[1760771732630,4.29431216,187.94,187.85,4.57063555]
[1760771732819,4.93616701,188.0,187.89,4.57063555]
[1760771733021,2.81,188.03,187.93,4.57063555]
[1760771733227,8.91481586,188.02,187.89,4.57063555]
[1760771733424,2.81,188.0,187.89,4.57063555]
[1760771733623,4.28302731,187.99,187.89,4.57063555]
[1760771733821,4.28119988,187.98,187.89,4.57063555]
[1760771734023,2.81,187.96,187.89,4.57063555]
[1760771734622,4.7859,188.0,187.89,4.57063555]
[1760771734623,2.81,188.0,187.89,4.57063555]
[1760771735228,2.81,188.01,187.89,4.57063555]
[1760771735429,7.08885004,188.0,187.89,4.57063555]
[1760771735626,2.81,188.0,187.89,4.57063555]
[1760771735831,2.81,188.0,187.89,9.35913555]
[1760771736430,7.0875613,187.99,187.89,4.57063555]
[1760771736728,2.81,187.99,187.89,4.57063555]
[1760771738132,2.81,187.99,187.9,4.7884]
[1760771738327,2.81,187.99,187.87,4.57063555]
[1760771738533,2.81,187.99,187.89,4.7887]
[1760771738730,2.81,187.99,187.87,4.57063555]
[1760771739130,2.81,187.99,187.91,4.7882]
[1760771739329,4.27394488,188.02,187.97,1.79193927]
[1760771739530,2.81,188.01,187.97,1.79193927]
[1760771739728,7.08376088,188.02,187.95,1.79193927]
[1760771739928,2.81,188.02,187.95,1.79193927]
[1760771741230,2.81,188.02,187.97,1.79193927]
[1760771741427,2.81,188.02,187.95,2.79968975]
[1760771741634,2.81,188.02,187.93,2.79968975]
[1760771742236,2.68,188.01,187.9,2.79968975]
[1760771743232,2.68,187.99,187.9,2.79968975]
[1760771743634,2.68,187.99,187.87,2.79968975]
[1760771743829,4.786,188.0,187.87,2.79968975]
[1760771743830,2.68,187.98,187.87,7.58868975]
[1760771744036,2.68,187.98,187.9,2.79968975]
[1760771745843,2.68,187.98,187.87,4.789]
[1760771746138,4.7857,188.01,187.9,2.79968975]
[1760771746139,2.68,188.0,187.9,2.79968975]
[1760771747537,2.68,188.0,187.91,4.788]
[1760771749246,2.68,188.0,187.93,4.7876]
[1760771749741,2.68,188.0,187.93,2.79968975]
[1760771750446,2.68,188.0,187.94,4.7873]
[1760771760246,2.79968975,188.05,187.9,4.7884]
[1760771760449,2.68,188.01,187.89,2.79968975]
[1760771761658,2.68,188.01,187.92,4.788]
[1760771761659,2.68,187.99,187.92,4.788]
[1760771762249,6.94326904,187.98,187.84,64.79968975]
[1760771762450,6.94326904,187.98,187.84,2.79968975]
[1760771762954,4.26326904,187.98,187.84,2.79968975]
[1760771763158,6.94326904,187.97,187.84,2.79968975]
[1760771763353,2.68,187.95,187.84,2.79968975]
[1760771763554,2.68,187.96,187.86,4.7893]
[1760771763756,5.47968975,187.96,187.84,2.79968975]
[1760771764055,2.68,187.96,187.84,2.79968975]
[1760771765047,2.7,187.94,187.85,4.7895]
[1760771765253,2.7,187.95,187.85,4.7895]
[1760771765452,8.9963735,187.94,187.85,4.7895]
[1760771765651,2.7,187.92,187.85,4.7895]
[1760771765854,2.79968975,187.96,187.85,4.7895]
[1760771766054,2.7,187.94,187.85,4.7895]
[1760771766253,2.79968975,187.96,187.85,4.7895]
[1760771766254,2.7,187.92,187.85,4.7895]
[1760771766649,4.73049486,187.94,187.83,4.7902]
[1760771766852,2.7,187.92,187.78,2.79968975]
[1760771767051,2.7,187.89,187.78,2.79968975]
[1760771767358,2.7,187.87,187.75,2.79968975]
[1760771768051,2.79968975,187.9,187.77,4.7917]
[1760771768254,2.7,187.88,187.77,4.7917]
[1760771768457,2.7,187.86,187.77,4.7917]
[1760771768655,2.7,187.9,187.69,137.84]
[1760771768855,2.7,187.88,187.8,2.79968975]
[1760771769060,9.00602788,187.92,187.83,2.79968975]
[1760771769254,2.7,187.94,187.81,7.59038975]
[1760771769458,11.80503009,187.93,187.81,7.59038975]
[1760771769761,2.7,187.91,187.81,7.59038975]
[1760771770152,2.7,187.89,187.78,4.7913]
[1760771770561,4.27474415,187.88,187.78,4.7913]
[1760771770763,2.7,187.87,187.78,4.7913]
[1760771771553,2.71,187.87,187.75,4.7921]
[1760771771751,2.71,187.85,187.75,7.59178975]
[1760771773263,2.71,187.84,187.75,7.59178975]
[1760771775161,2.71,187.83,187.7,2.79968975]
[1760771775363,4.27154137,187.82,187.7,2.79968975]
[1760771775661,2.71,187.81,187.7,7.59298975]
[1760771776054,2.71,187.81,187.7,2.79968975]
[1760771776255,2.71,187.81,187.72,4.7931]
[1760771776660,2.71,187.86,187.73,2.79968975]
[1760771776856,2.71,187.86,187.76,2.79968975]
[1760771778161,2.71,187.86,187.77,62.0]
[1760771778366,2.71,187.86,187.79,7.59088975]
[1760771778561,2.71,187.86,187.79,4.7912]
[1760771779358,2.71,187.86,187.77,4.7918]
[1760771779564,2.71,187.85,187.73,2.79968975]
[1760771780060,2.71,187.84,187.73,2.79968975]
[1760771780462,2.71,187.85,187.75,4.7923]